fUST/lending_fUST_20260526
["ID","MTS","AMOUNT","RATE_DAILY","PERIOD"]
[423014601,1779747032000,-536.75908748,7.575e-05,2]
[423014607,1779747032000,-746.04463181,7.69e-05,2]
[423014613,1779747032000,-908.09838472,8.015e-05,2]
[423014609,1779747032000,-2585.11618101,7.78e-05,2]
[423014626,1779747032000,-1053.37090414,8.015e-05,2]
[423014630,1779747032000,-160.0,8.018e-05,2]
[423014632,1779747032000,-160.0,8.018e-05,2]
[423014618,1779747032000,-1053.37090414,8.015e-05,2]
[423014621,1779747032000,-1053.37090414,8.015e-05,2]
[423014619,1779747032000,-1053.37090414,8.015e-05,2]
[423014634,1779747032000,-6173.04480006,8.019e-05,2]
[423014636,1779747032000,-598.70512035,8.019e-05,2]
[423014623,1779747032000,-1053.37090414,8.015e-05,2]
[423014624,1779747032000,-1053.37090414,8.015e-05,2]
[423014639,1779747032000,-1286.90383156,8.019e-05,2]
[423014628,1779747032000,-160.0,8.018e-05,2]
[423014671,1779747033000,-1053.37090414,8.015e-05,2]
[423014672,1779747033000,-330.57614841,8.019e-05,2]
[423014686,1779747039000,-743.06419202,8.015e-05,2]
[423014684,1779747039000,-1053.37090414,8.015e-05,2]
[423014685,1779747039000,-1053.37090414,8.015e-05,2]
[423014693,1779747041000,-2362.70224106,8.019e-05,2]
[423014691,1779747041000,-1053.37090414,8.015e-05,2]
[423014690,1779747041000,-1053.37090414,8.015e-05,2]
[423014689,1779747041000,-1053.37090414,8.015e-05,2]
[423014692,1779747041000,-656.30557314,8.019e-05,2]
[423014688,1779747041000,-1053.37090414,8.015e-05,2]
[423014687,1779747041000,-310.30671212,8.015e-05,2]
[423014865,1779747047000,-7349.07866982,8.019e-05,2]
[423014872,1779747682000,10183.03636464,0.000175,120]
[423014926,1779748231000,-152.71324402,7.124e-05,2]
[423014924,1779748231000,-168.458092,6.908e-05,2]
[423014913,1779748231000,-630.30421528,6.855e-05,2]
[423014922,1779748231000,-3803.4065695,6.855e-05,2]
[423014909,1779748231000,-163.8201796,6.854e-05,2]
[423014919,1779748231000,-566.28921522,6.855e-05,2]
[423014911,1779748231000,-540.25058351,6.855e-05,2]
[423014901,1779748231000,-262.32078478,6.854e-05,2]
[423014984,1779748238000,-5000.0,7.053e-05,2]
[423014985,1779748238000,-764.68773738,7.124e-05,2]
[423014986,1779748238000,-600.0,7.139e-05,2]
[423014988,1779748238000,-300.0,7.223e-05,2]
[423014987,1779748238000,-1200.0,7.222e-05,2]
[423014990,1779748238000,-2105.97283166,7.324e-05,2]
[423014989,1779748238000,-1898.98675045,7.224e-05,2]
[423014994,1779748238000,-19874.23680246,7.5e-05,2]
[423014992,1779748238000,-389.02666086,7.424e-05,2]
[423014995,1779748238000,-560.78235578,7.5e-05,2]
[423014991,1779748238000,-1819.34943999,7.424e-05,2]
[423014993,1779748238000,-2347.64183969,7.5e-05,2]
[423015000,1779748240000,-1825.08070627,7.5e-05,2]
[423014999,1779748240000,-20253.8769916,7.5e-05,2]
[423015085,1779748243000,-878.91953977,7.5e-05,2]
[423015077,1779748243000,-2297.19620628,7.5e-05,2]
[423015184,1779748246000,-66724.96852797,7.5e-05,2]
[423015183,1779748246000,-9844.49452627,7.5e-05,2]
[423015185,1779748273000,-3260.71711009,7.425e-05,2]
[423015186,1779748290000,-300.0,7.499e-05,2]
[423015187,1779748371000,2002.9551556,0.00015,30]
[423015229,1779749433000,-998.43499874,6.804e-05,2]
[423015227,1779749433000,-1131.54449488,6.804e-05,2]
[423015234,1779749433000,-133.10949614,6.804e-05,2]
[423015225,1779749433000,-1131.54449488,6.804e-05,2]
[423015236,1779749434000,-252.89550386,6.804e-05,2]
[423015281,1779749438000,-304.77519035,6.804e-05,2]
[423015285,1779749438000,-328.09261854,6.804e-05,2]
[423015294,1779749438000,-500.0,6.804e-05,2]
[423015295,1779749438000,-500.0,6.804e-05,2]
[423015284,1779749438000,-500.0,6.804e-05,2]
[423015282,1779749438000,-500.0,6.804e-05,2]
[423015277,1779749438000,-500.0,6.804e-05,2]
[423015280,1779749438000,-500.0,6.804e-05,2]
[423015271,1779749438000,-1131.54449488,6.804e-05,2]
[423015278,1779749438000,-500.0,6.804e-05,2]
[423015276,1779749438000,-500.0,6.804e-05,2]
[423015274,1779749438000,-1131.54449488,6.804e-05,2]
[423015273,1779749438000,-1131.54449488,6.804e-05,2]
[423015275,1779749438000,-1131.54449488,6.804e-05,2]
[423015283,1779749438000,-500.0,6.804e-05,2]
[423015272,1779749438000,-1131.54449488,6.804e-05,2]
[423015270,1779749438000,-878.64899102,6.804e-05,2]
[423015279,1779749438000,-1131.54449488,6.804e-05,2]
[423015292,1779749438000,-500.0,6.804e-05,2]
[423015296,1779749438000,-1131.54449488,6.804e-05,2]
[423015289,1779749438000,-1131.54449488,6.804e-05,2]
[423015309,1779749438000,-29645.73086605,6.805e-05,2]
[423015308,1779749438000,-968.13929442,6.805e-05,2]
[423015306,1779749438000,-1131.54449488,6.804e-05,2]
[423015305,1779749438000,-500.0,6.804e-05,2]
[423015304,1779749438000,-1131.54449488,6.804e-05,2]
[423015303,1779749438000,-500.0,6.804e-05,2]
[423015300,1779749438000,-500.0,6.804e-05,2]
[423015299,1779749438000,-1131.54449488,6.804e-05,2]
[423015290,1779749438000,-500.0,6.804e-05,2]
[423015298,1779749438000,-500.0,6.804e-05,2]
[423015301,1779749438000,-500.0,6.804e-05,2]
[423015297,1779749438000,-500.0,6.804e-05,2]
[423015291,1779749438000,-500.0,6.804e-05,2]
[423015288,1779749438000,-500.0,6.804e-05,2]
[423015293,1779749438000,-500.0,6.804e-05,2]
[423015287,1779749438000,-500.0,6.804e-05,2]
[423015286,1779749438000,-382.65353486,6.804e-05,2]
[423015302,1779749438000,-500.0,6.804e-05,2]
[423015307,1779749438000,-37633.39808805,6.805e-05,2]
[423015334,1779749443000,-1013.27128735,6.805e-05,2]
[423015344,1779749446000,-27605.26247651,6.805e-05,2]
[423015356,1779750072000,-969.91523076,6.467e-05,2]
[423015399,1779750632000,-327.0,6.207e-05,2]
[423015401,1779750632000,-432.62832657,6.207e-05,2]
[423016135,1779750638000,-1093.84395969,6.601e-05,2]
[423016136,1779750638000,-1093.84395969,6.601e-05,2]
[423016133,1779750638000,-1093.84395969,6.601e-05,2]
[423016131,1779750638000,-591.407,6.571e-05,2]
[423016122,1779750638000,-3256.7172155,6.207e-05,2]
[423016126,1779750638000,-300.0,6.334e-05,2]
[423016129,1779750638000,-543.39806855,6.368e-05,2]
[423016140,1779750638000,-1093.84395969,6.601e-05,2]
[423016120,1779750638000,-983.65445793,6.207e-05,2]
[423016125,1779750638000,-151.0,6.27e-05,2]
[423016114,1779750638000,-500.0,6.206e-05,2]
[423016113,1779750638000,-500.0,6.206e-05,2]
[423016116,1779750638000,-500.0,6.206e-05,2]
[423016111,1779750638000,-123.0226518,6.206e-05,2]
[423016105,1779750638000,-174.42642777,6.206e-05,2]
[423016104,1779750638000,-500.0,6.206e-05,2]
[423016103,1779750638000,-500.0,6.206e-05,2]
[423016118,1779750638000,-457.78800437,6.206e-05,2]
[423016138,1779750638000,-1093.84395969,6.601e-05,2]
[423016127,1779750638000,-1200.0,6.334e-05,2]
[423016153,1779750638000,-1093.84395969,6.601e-05,2]
[423016170,1779750638000,-25093.89017235,6.605e-05,2]
[423016168,1779750638000,-1093.84395969,6.601e-05,2]
[423016169,1779750638000,-3513.86381496,6.605e-05,2]
[423016164,1779750638000,-1093.84395969,6.601e-05,2]
[423016167,1779750638000,-774.35974107,6.601e-05,2]
[423016166,1779750638000,-319.48421862,6.601e-05,2]
[423016165,1779750638000,-1093.84395969,6.601e-05,2]
[423016163,1779750638000,-492.8027679,6.601e-05,2]
[423016142,1779750638000,-1093.84395969,6.601e-05,2]
[423016162,1779750638000,-601.04119179,6.601e-05,2]
[423016149,1779750638000,-1093.84395969,6.601e-05,2]
[423016145,1779750638000,-1093.84395969,6.601e-05,2]
[423016147,1779750638000,-1093.84395969,6.601e-05,2]
[423016160,1779750638000,-1093.84395969,6.601e-05,2]
[423016155,1779750638000,-1093.84395969,6.601e-05,2]
[423016156,1779750638000,-415.86925709,6.601e-05,2]
[423016144,1779750638000,-1093.84395969,6.601e-05,2]
[423016158,1779750638000,-677.9747026,6.601e-05,2]
[423016151,1779750638000,-1093.84395969,6.601e-05,2]
[423016176,1779750642000,-414.12432266,6.605e-05,2]
[423016178,1779750642000,-1075.76193345,6.605e-05,2]
[423016177,1779750642000,-818.56969456,6.605e-05,2]
[423016175,1779750642000,-7222.38778036,6.605e-05,2]
[423016218,1779750643000,-5720.74208041,6.605e-05,2]
[423016219,1779750643000,-9424.17614747,6.605e-05,2]
[423016220,1779750644000,-720.0,6.605e-05,2]
[423016236,1779750647000,-1026.01566809,6.601e-05,2]
[423016237,1779751389000,2358.45,0.00015,30]
[423016257,1779751832000,-1200.0,6.082e-05,2]
[423016256,1779751832000,-886.4080534,5.983e-05,2]
[423016255,1779751832000,-564.35130517,5.936e-05,2]
[423016253,1779751832000,-398.91726361,5.37e-05,2]
[423016251,1779751832000,-1851.08273639,5.37e-05,2]
[423016252,1779751832000,-2750.0,5.37e-05,2]
[423016250,1779751832000,-161.97644493,5.369e-05,2]
[423016259,1779751832000,-300.0,6.182e-05,2]
[423016254,1779751832000,-327.9382255,5.424e-05,2]
[423016258,1779751832000,-1686.45630896,6.083e-05,2]
[423016269,1779751832000,-1072.9427372,6.282e-05,2]
[423016261,1779751832000,-2463.71832697,6.183e-05,2]
[423016271,1779751832000,-467.86392923,6.282e-05,2]
[423016260,1779751832000,-300.0,6.182e-05,2]
[423016268,1779751832000,-858.91669589,6.282e-05,2]
[423016266,1779751832000,-862.42877645,6.282e-05,2]
[423016270,1779751832000,-498.92993074,6.282e-05,2]
[423016264,1779751832000,-1072.9427372,6.282e-05,2]
[423016267,1779751832000,-214.02604131,6.282e-05,2]
[423016263,1779751832000,-1072.9427372,6.282e-05,2]
[423016262,1779751832000,-151.0,6.246e-05,2]
[423016265,1779751832000,-210.51396075,6.282e-05,2]
[423016307,1779751838000,-151.0,6.332e-05,2]
[423016301,1779751838000,-1072.9427372,6.282e-05,2]
[423016300,1779751838000,-1072.9427372,6.282e-05,2]
[423016303,1779751838000,-1072.9427372,6.282e-05,2]
[423016305,1779751838000,-2486.50456451,6.283e-05,2]
[423016297,1779751838000,-1072.9427372,6.282e-05,2]
[423016294,1779751838000,-1072.9427372,6.282e-05,2]
[423016296,1779751838000,-1072.9427372,6.282e-05,2]
[423016295,1779751838000,-1072.9427372,6.282e-05,2]
[423016293,1779751838000,-106.14887723,6.282e-05,2]
[423016302,1779751838000,-1072.9427372,6.282e-05,2]
[423016292,1779751838000,-199.7165644,5.369e-05,2]
[423016299,1779751838000,-1072.9427372,6.282e-05,2]
[423016306,1779751838000,-201.9932974,6.332e-05,2]
[423016298,1779751838000,-1072.9427372,6.282e-05,2]
[423016309,1779751838000,-326.3915622,6.332e-05,2]
[423016304,1779751838000,-1072.9427372,6.282e-05,2]
[423016320,1779751838000,-2554.07644465,7.124e-05,2]
[423016317,1779751838000,-3286.55282007,6.828e-05,2]
[423016318,1779751838000,-600.0,6.99e-05,2]
[423016319,1779751838000,-2329.0036656,7.124e-05,2]
[423016316,1779751838000,-420.0,6.8e-05,2]
[423016321,1779751838000,-2170.25782678,7.124e-05,2]
[423016314,1779751838000,-157.577899,6.56e-05,2]
[423016313,1779751838000,-20831.1573519,6.56e-05,2]
[423016312,1779751838000,-784.6655303,6.56e-05,2]
[423016310,1779751838000,-2943.60064644,6.462e-05,2]
[423016308,1779751838000,-326.0419999,6.332e-05,2]
[423016311,1779751838000,-1486.4067999,6.56e-05,2]
[423016315,1779751838000,-1501.0,6.69e-05,2]
[423016364,1779751839000,-500.0,8.219e-05,2]
[423016368,1779751839000,-500.0,8.219e-05,2]
[423016365,1779751839000,-500.0,8.219e-05,2]
[423016362,1779751839000,-500.0,8.219e-05,2]
[423016366,1779751839000,-214.02030934,8.219e-05,2]
[423016359,1779751839000,-500.0,8.219e-05,2]
[423016361,1779751839000,-500.0,8.219e-05,2]
[423016357,1779751839000,-500.0,8.219e-05,2]
[423016358,1779751839000,-500.0,8.219e-05,2]
[423016360,1779751839000,-500.0,8.219e-05,2]
[423016367,1779751839000,-500.0,8.219e-05,2]
[423016355,1779751839000,-500.0,8.219e-05,2]
[423016363,1779751839000,-500.0,8.219e-05,2]
[423016369,1779751839000,-500.0,8.219e-05,2]
[423016376,1779751839000,-500.0,8.219e-05,2]
[423016370,1779751839000,-500.0,8.219e-05,2]
[423016372,1779751839000,-500.0,8.219e-05,2]
[423016384,1779751839000,-500.0,8.219e-05,2]
[423016373,1779751839000,-500.0,8.219e-05,2]
[423016375,1779751839000,-633.36902697,8.219e-05,2]
[423016379,1779751839000,-500.0,8.219e-05,2]
[423016381,1779751839000,-500.0,8.219e-05,2]
[423016380,1779751839000,-500.0,8.219e-05,2]
[423016374,1779751839000,-500.0,8.219e-05,2]
[423016382,1779751839000,-500.0,8.219e-05,2]
[423016378,1779751839000,-500.0,8.219e-05,2]
[423016377,1779751839000,-500.0,8.219e-05,2]
[423016356,1779751839000,-500.0,8.219e-05,2]
[423016371,1779751839000,-500.0,8.219e-05,2]
[423016353,1779751839000,-500.0,8.219e-05,2]
[423016333,1779751839000,-530.0,7.65e-05,2]
[423016350,1779751839000,-500.0,8.219e-05,2]
[423016383,1779751839000,-500.0,8.219e-05,2]
[423016322,1779751839000,-542.56445669,7.124e-05,2]
[423016323,1779751839000,-2932.46673497,7.124e-05,2]
[423016326,1779751839000,-1628.68577676,7.124e-05,2]
[423016330,1779751839000,-587.0,7.48e-05,2]
[423016325,1779751839000,-407.57902321,7.124e-05,2]
[423016328,1779751839000,-4754.29750286,7.124e-05,2]
[423016324,1779751839000,-732.38356706,7.124e-05,2]
[423016329,1779751839000,-3423.48296608,7.193e-05,2]
[423016331,1779751839000,-3903.36528571,7.559e-05,2]
[423016332,1779751839000,-25196.55999049,7.6e-05,2]
[423016335,1779751839000,-235.40631024,7.892e-05,2]
[423016334,1779751839000,-720.0,7.689e-05,2]
[423016336,1779751839000,-160.0,7.909e-05,2]
[423016337,1779751839000,-160.0,7.909e-05,2]
[423016338,1779751839000,-160.0,7.909e-05,2]
[423016340,1779751839000,-665.9345401,7.936e-05,2]
[423016339,1779751839000,-4086.60107562,7.924e-05,2]
[423016341,1779751839000,-95343.292188,8e-05,2]
[423016342,1779751839000,-10015.32498953,8e-05,2]
[423016344,1779751839000,-500.0,8.219e-05,2]
[423016343,1779751839000,-1667.2549,8.219e-05,2]
[423016347,1779751839000,-500.0,8.219e-05,2]
[423016345,1779751839000,-500.0,8.219e-05,2]
[423016346,1779751839000,-500.0,8.219e-05,2]
[423016348,1779751839000,-500.0,8.219e-05,2]
[423016349,1779751839000,-500.0,8.219e-05,2]
[423016352,1779751839000,-531.18,8.219e-05,2]
[423016354,1779751839000,-500.0,8.219e-05,2]
[423016351,1779751839000,-500.0,8.219e-05,2]
[423016385,1779751839000,-500.0,8.219e-05,2]
[423016327,1779751839000,-1188.57437571,7.124e-05,2]
[423016388,1779751839000,-500.0,8.219e-05,2]
[423016419,1779751839000,-500.0,8.219e-05,2]
[423016422,1779751839000,-500.0,8.219e-05,2]
[423016423,1779751839000,-500.0,8.219e-05,2]
[423016424,1779751839000,-500.0,8.219e-05,2]
[423016425,1779751839000,-500.0,8.219e-05,2]
[423016429,1779751839000,-500.0,8.219e-05,2]
[423016426,1779751839000,-500.0,8.219e-05,2]
[423016432,1779751839000,-1006.84,8.219e-05,2]
[423016427,1779751839000,-500.0,8.219e-05,2]
[423016430,1779751839000,-1143.88,8.219e-05,2]
[423016434,1779751839000,-648.64,8.219e-05,2]
[423016431,1779751839000,-500.0,8.219e-05,2]
[423016428,1779751839000,-500.0,8.219e-05,2]
[423016435,1779751839000,-500.0,8.219e-05,2]
[423016437,1779751839000,-500.0,8.219e-05,2]
[423016436,1779751839000,-500.0,8.219e-05,2]
[423016438,1779751839000,-825.93,8.219e-05,2]
[423016440,1779751839000,-500.0,8.219e-05,2]
[423016439,1779751839000,-534.06988833,8.219e-05,2]
[423016441,1779751839000,-500.0,8.219e-05,2]
[423016443,1779751839000,-500.0,8.219e-05,2]
[423016442,1779751839000,-471.4065991,8.219e-05,2]
[423016447,1779751839000,-500.0,8.219e-05,2]
[423016445,1779751839000,-500.0,8.219e-05,2]
[423016446,1779751839000,-500.0,8.219e-05,2]
[423016444,1779751839000,-500.0,8.219e-05,2]
[423016448,1779751839000,-500.0,8.219e-05,2]
[423016449,1779751839000,-841.37,8.219e-05,2]
[423016386,1779751839000,-500.0,8.219e-05,2]
[423016421,1779751839000,-500.0,8.219e-05,2]
[423016420,1779751839000,-500.0,8.219e-05,2]
[423016433,1779751839000,-500.0,8.219e-05,2]
[423016417,1779751839000,-500.0,8.219e-05,2]
[423016418,1779751839000,-500.0,8.219e-05,2]
[423016392,1779751839000,-631.08,8.219e-05,2]
[423016389,1779751839000,-500.0,8.219e-05,2]
[423016394,1779751839000,-500.0,8.219e-05,2]
[423016393,1779751839000,-500.0,8.219e-05,2]
[423016391,1779751839000,-500.0,8.219e-05,2]
[423016390,1779751839000,-500.0,8.219e-05,2]
[423016398,1779751839000,-500.0,8.219e-05,2]
[423016399,1779751839000,-500.0,8.219e-05,2]
[423016397,1779751839000,-500.0,8.219e-05,2]
[423016396,1779751839000,-500.0,8.219e-05,2]
[423016401,1779751839000,-500.0,8.219e-05,2]
[423016403,1779751839000,-500.0,8.219e-05,2]
[423016400,1779751839000,-500.0,8.219e-05,2]
[423016395,1779751839000,-500.0,8.219e-05,2]
[423016413,1779751839000,-500.0,8.219e-05,2]
[423016402,1779751839000,-500.0,8.219e-05,2]
[423016415,1779751839000,-500.0,8.219e-05,2]
[423016416,1779751839000,-500.0,8.219e-05,2]
[423016414,1779751839000,-500.0,8.219e-05,2]
[423016411,1779751839000,-588.86,8.219e-05,2]
[423016409,1779751839000,-1000.0,8.219e-05,2]
[423016410,1779751839000,-500.0,8.219e-05,2]
[423016387,1779751839000,-500.0,8.219e-05,2]
[423016408,1779751839000,-500.0,8.219e-05,2]
[423016405,1779751839000,-500.0,8.219e-05,2]
[423016407,1779751839000,-811.33,8.219e-05,2]
[423016406,1779751839000,-500.0,8.219e-05,2]
[423016404,1779751839000,-500.0,8.219e-05,2]
[423016412,1779751839000,-500.0,8.219e-05,2]
[423016498,1779751840000,-547.33,8.219e-05,2]
[423016496,1779751840000,-500.0,8.219e-05,2]
[423016495,1779751840000,-500.0,8.219e-05,2]
[423016493,1779751840000,-739.57,8.219e-05,2]
[423016494,1779751840000,-500.0,8.219e-05,2]
[423016492,1779751840000,-500.0,8.219e-05,2]
[423016489,1779751840000,-500.0,8.219e-05,2]
[423016490,1779751840000,-500.0,8.219e-05,2]
[423016488,1779751840000,-500.0,8.219e-05,2]
[423016487,1779751840000,-500.0,8.219e-05,2]
[423016486,1779751840000,-500.0,8.219e-05,2]
[423016485,1779751840000,-204.11397081,8.219e-05,2]
[423016491,1779751840000,-500.0,8.219e-05,2]
[423016483,1779751840000,-500.0,8.219e-05,2]
[423016511,1779751840000,-500.0,8.219e-05,2]
[423016497,1779751840000,-500.0,8.219e-05,2]
[423016500,1779751840000,-500.0,8.219e-05,2]
[423016503,1779751840000,-500.0,8.219e-05,2]
[423016502,1779751840000,-500.0,8.219e-05,2]
[423016504,1779751840000,-500.0,8.219e-05,2]
[423016501,1779751840000,-500.0,8.219e-05,2]
[423016510,1779751840000,-500.0,8.219e-05,2]
[423016513,1779751840000,-500.0,8.219e-05,2]
[423016507,1779751840000,-500.0,8.219e-05,2]
[423016508,1779751840000,-500.0,8.219e-05,2]
[423016509,1779751840000,-500.0,8.219e-05,2]
[423016505,1779751840000,-500.0,8.219e-05,2]
[423016506,1779751840000,-500.0,8.219e-05,2]
[423016484,1779751840000,-500.0,8.219e-05,2]
[423016499,1779751840000,-500.0,8.219e-05,2]
[423016479,1779751840000,-500.0,8.219e-05,2]
[423016451,1779751840000,-500.0,8.219e-05,2]
[423016480,1779751840000,-500.0,8.219e-05,2]
[423016512,1779751840000,-500.0,8.219e-05,2]
[423016450,1779751840000,-500.0,8.219e-05,2]
[423016453,1779751840000,-500.0,8.219e-05,2]
[423016455,1779751840000,-500.0,8.219e-05,2]
[423016454,1779751840000,-500.0,8.219e-05,2]
[423016456,1779751840000,-500.0,8.219e-05,2]
[423016458,1779751840000,-601.76,8.219e-05,2]
[423016460,1779751840000,-500.0,8.219e-05,2]
[423016452,1779751840000,-500.0,8.219e-05,2]
[423016457,1779751840000,-500.0,8.219e-05,2]
[423016459,1779751840000,-500.0,8.219e-05,2]
[423016461,1779751840000,-500.0,8.219e-05,2]
[423016464,1779751840000,-500.0,8.219e-05,2]
[423016462,1779751840000,-500.0,8.219e-05,2]
[423016463,1779751840000,-500.0,8.219e-05,2]
[423016467,1779751840000,-500.0,8.219e-05,2]
[423016468,1779751840000,-500.0,8.219e-05,2]
[423016477,1779751840000,-500.0,8.219e-05,2]
[423016472,1779751840000,-500.0,8.219e-05,2]
[423016475,1779751840000,-500.0,8.219e-05,2]
[423016470,1779751840000,-500.0,8.219e-05,2]
[423016471,1779751840000,-501.90953744,8.219e-05,2]
[423016473,1779751840000,-500.0,8.219e-05,2]
[423016466,1779751840000,-500.0,8.219e-05,2]
[423016469,1779751840000,-500.0,8.219e-05,2]
[423016476,1779751840000,-500.0,8.219e-05,2]
[423016474,1779751840000,-500.0,8.219e-05,2]
[423016478,1779751840000,-500.0,8.219e-05,2]
[423016482,1779751840000,-500.0,8.219e-05,2]
[423016481,1779751840000,-500.0,8.219e-05,2]
[423016514,1779751840000,-500.0,8.219e-05,2]
[423016465,1779751840000,-500.0,8.219e-05,2]
[423016515,1779751840000,-500.17397271,8.219e-05,2]
[423016551,1779751840000,-500.0,8.219e-05,2]
[423016548,1779751840000,-500.0,8.219e-05,2]
[423016553,1779751840000,-500.0,8.219e-05,2]
[423016556,1779751840000,-500.0,8.219e-05,2]
[423016555,1779751840000,-500.0,8.219e-05,2]
[423016554,1779751840000,-1681.35,8.219e-05,2]
[423016560,1779751840000,-500.0,8.219e-05,2]
[423016558,1779751840000,-500.0,8.219e-05,2]
[423016563,1779751840000,-500.0,8.219e-05,2]
[423016567,1779751840000,-500.0,8.219e-05,2]
[423016561,1779751840000,-500.0,8.219e-05,2]
[423016565,1779751840000,-797.64,8.219e-05,2]
[423016557,1779751840000,-500.0,8.219e-05,2]
[423016559,1779751840000,-500.0,8.219e-05,2]
[423016550,1779751840000,-500.0,8.219e-05,2]
[423016566,1779751840000,-500.0,8.219e-05,2]
[423016571,1779751840000,-500.0,8.219e-05,2]
[423016570,1779751840000,-500.0,8.219e-05,2]
[423016572,1779751840000,-500.0,8.219e-05,2]
[423016569,1779751840000,-2757.3,8.219e-05,2]
[423016573,1779751840000,-500.0,8.219e-05,2]
[423016575,1779751840000,-500.0,8.219e-05,2]
[423016577,1779751840000,-713.25,8.219e-05,2]
[423016576,1779751840000,-500.0,8.219e-05,2]
[423016578,1779751840000,-500.0,8.219e-05,2]
[423016574,1779751840000,-1167.88,8.219e-05,2]
[423016579,1779751840000,-1226.91,8.219e-05,2]
[423016580,1779751840000,-500.0,8.219e-05,2]
[423016581,1779751840000,-500.0,8.219e-05,2]
[423016516,1779751840000,-500.0,8.219e-05,2]
[423016568,1779751840000,-1542.51,8.219e-05,2]
[423016552,1779751840000,-500.0,8.219e-05,2]
[423016582,1779751840000,-500.0,8.219e-05,2]
[423016546,1779751840000,-500.0,8.219e-05,2]
[423016517,1779751840000,-500.0,8.219e-05,2]
[423016518,1779751840000,-500.0,8.219e-05,2]
[423016522,1779751840000,-500.0,8.219e-05,2]
[423016524,1779751840000,-500.0,8.219e-05,2]
[423016525,1779751840000,-500.13859997,8.219e-05,2]
[423016526,1779751840000,-4015.65539121,8.219e-05,2]
[423016520,1779751840000,-500.14661618,8.219e-05,2]
[423016521,1779751840000,-573.2,8.219e-05,2]
[423016523,1779751840000,-500.4372812,8.219e-05,2]
[423016527,1779751840000,-18078.91460879,8.219e-05,2]
[423016528,1779751840000,-500.0,8.219e-05,2]
[423016529,1779751840000,-595.7,8.219e-05,2]
[423016530,1779751840000,-500.0,8.219e-05,2]
[423016538,1779751840000,-2866.49,8.219e-05,2]
[423016519,1779751840000,-1926.79,8.219e-05,2]
[423016532,1779751840000,-500.0,8.219e-05,2]
[423016533,1779751840000,-4740.82,8.219e-05,2]
[423016545,1779751840000,-984.66,8.219e-05,2]
[423016544,1779751840000,-500.0,8.219e-05,2]
[423016543,1779751840000,-500.0,8.219e-05,2]
[423016541,1779751840000,-396.14647603,8.219e-05,2]
[423016540,1779751840000,-500.0,8.219e-05,2]
[423016549,1779751840000,-500.0,8.219e-05,2]
[423016539,1779751840000,-701.35,8.219e-05,2]
[423016542,1779751840000,-1195.78,8.219e-05,2]
[423016534,1779751840000,-504.15,8.219e-05,2]
[423016531,1779751840000,-500.0,8.219e-05,2]
[423016547,1779751840000,-500.0,8.219e-05,2]
[423016535,1779751840000,-500.35908657,8.219e-05,2]
[423016537,1779751840000,-500.0,8.219e-05,2]
[423016536,1779751840000,-500.0,8.219e-05,2]
[423016607,1779751841000,-931.63,8.219e-05,2]
[423016608,1779751841000,-4079.6,8.219e-05,2]
[423016609,1779751841000,-846.75,8.219e-05,2]
[423016610,1779751841000,-1816.09,8.219e-05,2]
[423016611,1779751841000,-500.0,8.219e-05,2]
[423016613,1779751841000,-2883.65,8.219e-05,2]
[423016614,1779751841000,-500.0,8.219e-05,2]
[423016612,1779751841000,-500.0,8.219e-05,2]
[423016618,1779751841000,-512.19515645,8.219e-05,2]
[423016619,1779751841000,-1251.51,8.219e-05,2]
[423016606,1779751841000,-1016.99,8.219e-05,2]
[423016616,1779751841000,-500.0,8.219e-05,2]
[423016617,1779751841000,-500.0,8.219e-05,2]
[423016621,1779751841000,-500.0,8.219e-05,2]
[423016622,1779751841000,-500.0,8.219e-05,2]
[423016625,1779751841000,-500.0,8.219e-05,2]
[423016624,1779751841000,-500.0,8.219e-05,2]
[423016620,1779751841000,-1119.52,8.219e-05,2]
[423016615,1779751841000,-187.21733991,8.219e-05,2]
[423016590,1779751841000,-500.0,8.219e-05,2]
[423016602,1779751841000,-3660.0,8.219e-05,2]
[423016583,1779751841000,-1149.9,8.219e-05,2]
[423016585,1779751841000,-1255.12,8.219e-05,2]
[423016584,1779751841000,-500.0,8.219e-05,2]
[423016586,1779751841000,-500.0,8.219e-05,2]
[423016589,1779751841000,-500.0,8.219e-05,2]
[423016587,1779751841000,-2864.08,8.219e-05,2]
[423016593,1779751841000,-500.0,8.219e-05,2]
[423016627,1779751841000,-500.0,8.219e-05,2]
[423016592,1779751841000,-1498.89,8.219e-05,2]
[423016604,1779751841000,-1362.58,8.219e-05,2]